Cogmind - Beta 17.1 @@@ ROGUE MODE // 2026.09.22 @ 19:39:32 Player: H3-MLN Result: Sacrificed to X0-1V1 Performance ------------- Evolutions (0) 0 Regions Visited (1) 200 Robots Destroyed (11) 55 Value Destroyed (211) 211 Prototype IDs (0) 0 Alien Tech Used (0) 0 Bonus (0) 0 TOTAL SCORE: 466 Bonus ------- None Cogmind --------- Core Integrity 0/250 Matter 264/300 Energy 250/250 System Corruption 0% Temperature Cool (0) Movement Treading (160) Location -10/Materials Parts ------- > --- POWER (1) -------- Ion Engine > --- PROPULSION (2) --- Light Treads Light Treads > --- UTILITY (2) ------ Small Storage Unit Structural Scanner > --- WEAPON (2) ------- Assault Rifle Light Cannon > --- INVENTORY (8) ---- Ion Engine Wheel Wheel EM Pulse Gun Medium Laser Light Assault Rifle Light Assault Rifle Datajack Peak State ------------ > --- POWER ------------ Ion Engine > --- PROPULSION ------- Wheel Wheel > --- UTILITY ---------- Small Storage Unit Structural Scanner > --- WEAPON ----------- Assault Rifle Light Assault Rifle > --- INVENTORY -------- Ion Engine Light Treads Light Treads Light Assault Rifle Datajack [Rating: 7] Favorites ----------- Power Ion Engine Engine Ion Engine Propulsion Light Treads Treads Light Treads Wheel Wheel Utility Small Storage Unit Device Structural Scanner Storage Small Storage Unit Weapon Assault Rifle Ballistic Gun Assault Rifle Ballistic Cannon Light Cannon Build | -11 -10 ------- Run | Yrd Mat Slots Evolved . | . . Power . | . . Propulsion . | . . Utility . | . . Weapon . | . . Parts Attached 10 | 6 4 Power 1 | 1 . Engine 1 | 1 . Core . | . . Reactor . | . . Propulsion 4 | 2 2 Treads 2 | . 2 Leg . | . . Wheel 2 | 2 . Hover . | . . Flight . | . . Utility 2 | 1 1 Device 1 | . 1 Storage 1 | 1 . Processor . | . . Hackware . | . . Protection . | . . Artifact . | . . Weapon 3 | 2 1 Energy Gun . | . . Energy Cannon . | . . Ballistic Gun 2 | 2 . Ballistic Cannon 1 | . 1 Launcher . | . . Special Weapon . | . . Impact Weapon . | . . Slashing Weapon . | . . Piercing Weapon . | . . Special Melee Weapon . | . . Unidentified Prototypes . | . . Parts Lost . | . . Power . | . . Propulsion . | . . Utility . | . . Weapon . | . . Highest Loss Streak . | . . To Critical Strikes . | . . Average Backups 6 | 2 7 Power . | . 1 Propulsion 1 | 1 2 Utility . | . . Weapon 2 | . 3 Tool/Special . | . . Unused Backups 6 | . 6 Power 1 | . 1 Propulsion . | . . Utility . | . . Weapon 4 | . 4 Tool/Special 1 | . 1 Average Slot Usage (%) 99 | . 99 Engine 14 | . 14 Treads 18 | . 18 Wheel 9 | . 9 Device 13 | . 13 Storage 14 | . 14 Ballistic Gun 25 | . 25 Ballistic Cannon 2 | . 2 Peak Build Rating 7 | 6 7 Average Rating 6 | 4 6 On Entrance 3 | . 6 Avg Prop Armor Cover (%) . | . . Naked Turns . | . . Heaviest Build 16 | 13 16 Greatest Support 40 | 20 40 Greatest Overweight (x) . | . . Average Overweight (x) . | . . Largest Inventory Capacity 8 | 8 8 Average Capacity 7 | 7 8 Most Carried 8 | 4 8 Average Carried 6 | 2 7 Final Capacity 8 | 8 8 Final Carried 8 | 4 8 Class Distribution -------------------- 100% | Mutant Dominant Class ---------------- Mutant | -10/Materials Resources | -11 -10 ----------- Run | Yrd Mat Matter Collected 487 | 300 187 Remotely . | . . Salvage Created 414 | 92 322 Parts 22 | . 22 Haulers Intercepted . | . . Recyclers Shooed . | . . Parts Field Recycled . | . . Retrieved Matter . | . . Parts Self-Destructed . | . . Prevented . | . . Parts Restored . | . . Kills | -11 -10 ------- Run | Yrd Mat Combat Hostiles Destroyed 6 | . 6 Guns 5 | . 5 Cannons 1 | . 1 Classes Destroyed 6 | 1 5 Worker 1 | . 1 Tunneler 1 | . 1 Recycler 2 | 1 1 Watcher 1 | . 1 Swarmer 3 | . 3 Grunt 3 | . 3 Best Kill Streak 3 | 1 3 Combat Bots Only 3 | . 3 Max Kills in Single Turn 2 | 1 2 Gunslinging . | . . Exploded . | . . Melee . | . . Uniques/NPCs Destroyed . | . . Combat | -11 -10 -------- Run | Yrd Mat Hostile Shots Fired 44 | . 44 Missed 11 | . 11 Hits 33 | . 33 Projectile 33 | . 33 Critical Strikes 1 | . 1 Damage Taken 432 | . 432 Core 151 | . 151 Absorbed by Shields . | . . Core Remaining (%) 100 | 100 . Volleys Fired 52 | 10 42 Largest 2 | 2 2 Hottest 50 | 40 50 Shots Fired 95 | 20 75 Gun 81 | 20 61 Cannon 14 | . 14 Launcher . | . . Special . | . . Kinetic 95 | 20 75 Thermal . | . . Explosive . | . . Electromagnetic . | . . Robot Hit Streak 8 | 6 8 Robot Miss Streak 4 | 4 4 Penetration Max . | . . Secondary Targets . | . . Shots Hit Robots 54 | 12 42 Core Hits 17 | 3 14 Critical Kills . | . . Critical Parts Destroyed . | . . Critical Strikes . | . . Melee Attacks . | . . Impact . | . . Slashing . | . . Piercing . | . . Sneak Attacks . | . . Combat Hostiles . | . . Follow-up Attacks . | . . Damage Inflicted 666 | 130 536 Guns 535 | 130 405 Cannons 69 | . 69 Explosions 62 | . 62 Melee . | . . Ramming . | . . Kinetic 604 | 130 474 Thermal 62 | . 62 Explosive . | . . Electromagnetic . | . . Impact . | . . Slashing . | . . Piercing . | . . Highest Corruption . | . . Average Corruption . | . . Corruption Purged . | . . Corruption Blocked . | . . Overload Shots . | . . Overflow Damage . | . . Projectiles . | . . Explosions . | . . Melee . | . . Knockbacks 1 | . 1 Impact . | . . Kinetic 1 | . 1 Secondary . | . . Self-Inflicted Damage 88 | . 88 Shots 1 | . 1 Rammed . | . . Targets Rammed . | . . Kicked . | . . Crushed . | . . Highest Temperature 27 | . 27 Average Temperature 9 | . 9 Received Heat Transfer 153 | . 153 Siege Activations . | . . Martial Activations . | . . Shielding Activations . | . . Robots Disrupted . | . . Combat Hostiles . | . . Robots Corrupted . | . . Combat Hostiles . | . . Parts Fried . | . . Impact Corruptions . | . . Robots Melted . | . . Combat Hostiles . | . . Parts Melted . | . . Heat Transferred 50 | . 50 Parts Sabotaged . | . . Parts Stolen . | . . Parts Stripped . | . . Power Chain Reactions . | . . Alert | -11 -10 ------- Run | Yrd Mat Maximum Alert Level . | . . Low Security (%) 100 | 100 100 Level 1 . | . . Level 2 . | . . Level 3 . | . . Level 4 . | . . Level 5 . | . . High Security . | . . Max Security . | . . Peak Influence 112 | 5 112 Initial . | . . Average 39 | . 50 Influence Increases 222 | 5 217 Destroy 0b10 Robot/C 120 | . 120 Destroy 0b10 Robot/NC 25 | 5 20 Destroy Leader 32 | . 32 Disable Machine 45 | . 45 Influence Decreases 139 | 5 134 Time Decay 139 | 5 134 Squads Dispatched 2 | . 2 Investigation 1 | . 1 Extermination . | . . Reinforcement 1 | . 1 Assault . | . . Garrison . | . . Intercept . | . . Searches Triggered . | . . Construction Impeded . | . . Haulers Reinforced . | . . Active Scanning Responses . | . . Cargo Convoy Interrupts . | . . Stealth | -11 -10 --------- Run | Yrd Mat Distress Signals 1 | . 1 Communications Jammed . | . . Distress Signals . | . . Times Spotted 11 | . 11 Peak Tracking Total 3 | . 3 Tactical Retreats . | . . Traps | -11 -10 ------- Run | Yrd Mat Traps Triggered 1 | . 1 Indirectly . | . . Trap Hack Attempts . | . . Triggered . | . . Disarmed . | . . Reprogrammed . | . . Reused . | . . Traps Extracted . | . . Installed . | . . Triggered . | . . Machines | -11 -10 ---------- Run | Yrd Mat Machines Disabled 3 | . 3 Max in Single Turn 3 | . 3 Machines Repaired . | . . Machines Dismantled . | . . Machines Sabotaged . | . . Overloaded Fab Kills . | . . Hacking | -11 -10 --------- Run | Yrd Mat Machines Accessed . | . . Terminals . | . . Fabricators . | . . Repair Stations . | . . Recycling Units . | . . Scanalyzers . | . . Garrison Access . | . . Total Hacks . | . . Successful . | . . Failed . | . . Catastrophic . | . . Database Lockouts . | . . Manual 1 | . 1 Terminals . | . . Fabricators . | . . Repair Stations . | . . Recycling Units . | . . Scanalyzers . | . . Garrison Access . | . . Terminal Hacks . | . . Fabricator Hacks . | . . Repair Station Hacks . | . . Recycling Unit Hacks . | . . Scanalyzer . | . . Garrison Access Hacks . | . . Unauthorized Hacks . | . . Terminals . | . . Fabricators . | . . Repair Stations . | . . Recycling Units . | . . Scanalyzers . | . . Garrison Access . | . . Data Cores Recovered . | . . Used . | . . Hacking Detections . | . . Full Trace Events . | . . Feedback Events . | . . Feedback Blocked . | . . Robot Schematics Acquired . | . . Robots Built . | . . Authchips . | . . Time . | . . Total Robot Build Rating . | . . Part Schematics Acquired . | . . Parts Built . | . . Authchips . | . . Time . | . . Total Part Build Rating . | . . Part Studies Acquired . | . . Parts Repaired . | . . Time . | . . Parts Recycled . | . . Recycled Matter . | . . Retrieved Matter . | . . Retrieved Components . | . . Parts Scanalyzed . | . . Part Schematics Acquired . | . . Parts Damaged . | . . Bothacking | -11 -10 ------------ Run | Yrd Mat Used RIF Installer . | . . Robots Hacked . | . . Non-combat . | . . Combat . | . . Robot Hacks Applied . | . . Relay Couplers Released . | . . Fabnet Peak Effective % . | . . Robots Rewired . | . . Allies Hacked . | . . Hacks Repelled . | . . Allies | -11 -10 -------- Run | Yrd Mat Total Allies . | . . Largest Group . | . . Highest-Rated Group . | . . Highest-Rated Ally . | . . Total Orders . | . . Ally Attacks . | . . Total Damage . | . . Kills . | . . Allies Corrupted . | . . Allies Melted . | . . Intel | -11 -10 ------- Run | Yrd Mat Active Infowar (turns) 436 | . 436 Structural 436 | . 436 Robot Analysis Total . | . . Derelict Logs Recovered . | . . Drone Launches . | . . Drone Recoveries . | . . Exploration | -11 -10 ------------- Run | Yrd Mat Turns Passed 579 | 122 457 Spaces Moved 298 | 108 190 Core 38 | 38 . Treads 110 | . 110 Legs . | . . Wheels 150 | 70 80 Hover . | . . Flight . | . . Fastest Speed 50 | 50 80 Average Speed 105 | 69 126 Slowest Speed 160 | 80 160 Overloaded Moves . | . . Propulsion Burnouts . | . . Robots Hopped . | . . Potential Cave-ins . | . . Cave-ins Triggered . | . . Exploration Rate (%) 15 | 4 27 Regions Visited 1 Branch Regions . Pre-discovered Areas . | . . Known Exits Taken . | . . Unknown Exits Taken 1 | 1 . Scrap Searched . | . . Spaces Dug . | . . Terrain Destroyed . | . . Melee . | . . Projectile . | . . AOE . | . . Terrain Rammed . | . . Walls Destroyed . | . . Machines Disabled . | . . Actions | -11 -10 --------- Run | Yrd Mat Total 470 | 134 336 Wait 100 | 5 95 Move 297 | 107 190 Hop . | . . Pick Up 10 | 6 4 Fast Attach 6 | 4 2 Attach 2 | 2 . Detach . | . . Swap 2 | . 2 Drop 1 | . 1 Fire 52 | 10 42 Melee . | . . Ram . | . . Kick . | . . Crush . | . . Escape Stasis . | . . Rewire . | . . Trap . | . . Miscellaneous . | . . Route ------- -11/Scrapyard -10/Materials (discovered 2 exits: [*Min] / [*Sub]) History --------- Turn | Location | Event 4 | -11/Scrapyard | Discovered new exit (range 16) 123 | -11/Scrapyard | Entered Materials 155 | -10/Materials | Discovered new exit (range 15) 177 | -10/Materials | Discovered new exit (range 8) 315 | -10/Materials | Build established: Mutant 435 | -10/Materials | Core integrity fell below 50% 580 | -10/Materials | Made a sacrifice at D.C.S.S. Altar Unit 580 | -10/Materials | Sacrificed to X0-1V1 Last Messages --------------- 00501_ G-34 Mercenary knocked back. 00502_ K-01 Serf collects debris. 00513_ K-01 Serf destroyed. 00513_ G-34 Mercenary destroyed. 00521_ Acquired 32 matter. 00523_ K-01 Serf collects debris. 00524_ Acquired 1 matter. 00526_ K-01 Serf collects debris. 00529_ Extracted 44 matter. 00529_ U-05 Engineer lays Concrete. 00535_ K-01 Serf collects debris. 00536_ U-05 Engineer lays Concrete. 00536_ K-01 Serf collects debris. 00537_ U-05 Engineer lays Concrete. 00540_ K-01 Serf collects debris. 00541_ U-05 Engineer lays Concrete. 00543_ K-01 Serf collects debris. 00543_ U-05 Engineer lays Concrete. 00580_ Connecting with D.C.S.S. Altar Unit... 00580_ Current location identified: Materials Map ----- +----------------------------------------------------+ | | | | | | | ???????????????????????????? | | ???????????????????????????? | | #########??????????????????? | | #########??????????????????? | | #############???????? | | [ !#############???????? | | # ##???????? | | """ + ##???????? | | """ # """ #####???????? | | "" """ # """ "########???? | | "Y """ # """ T#########??? | | "" #* "###"""####?? | | !# ! ###"!!!"###?? | | ####/###=% / #"" ""##?? | | # ##?? | | # < ##?? | | """ %= # ##?? | | """"" ! ## ##?? | | """"" ### ###?? | | """"" #### ###### | | #### ###### | | #### # #X# | | #### # @## | | #### # ## | | #### !# ## | | #### [#g ## | | =%+[= ## | | !#*! ## | | ^^# %#% <# | | ^ # ### ## ## | | ? # ==! ###+####### | | ? # """""%* # #### | | ?? # """""*%= # ##?? | | ?? # """"" = # ##?? | | ?? # """ # |!##?? | | ??## # ##?? | | ??## # ##?? | | ???? ##+######?? | | ???? ###?? | | ???? #???? | | ???? #???? | | ???? ##########+#####??? | | ?? # ######### #??? | | ?? # ????????# #??? | | ?? # ?????????# """ #??? | | ?????????????????# """ #??? | | ?????????????????# """ #??? | +----------------------------------------------------+ Best States ------------- Heat Dissipation 25 Energy Generation 10 Energy Capacity 250 Matter Stores 300 Matter Capacity 300 Sight Range 16 Terrain Scan Density 10 Evasion (%) 50 Recoil Reduction 2 Item Schematics ----------------- None Robot Schematics ------------------ None Fabricated ------------ Nothing Repaired ---------- Nothing Studied --------- None Alien Tech Used ----------------- None Achievements -------------- None Challenges ------------ None Game ------ Seed EtherialPlatingMicrothruster Manual? 0 Play Time 00:12:28 Cumulative 1850.9 hours Start 2026.09.22 @ 19:19:32 End 2026.09.22 @ 19:39:32 Sessions 1 Manual Loads 0 Difficulty Rogue Special Mode None Game No. 557 Rogue 549 Adventurer 4 Explorer 4 Win Type - Total 78 Types 32/12/6/4/2/5/10/2/3/2 Lore% 98 Gallery% 96 Achievement% 94 Wizard Run 0 Options --------- Layout 0 ASCII 0 Keyboard 0 Movement Numpad Keybinds 0 Fullscreen 2 Font 18/SmallcapsGlow Map View 76x50 Zoom Use 0% Tactical HUD 1 Map Filters NONE Filters NONE Steam 1 RUN: 1c196c27-d7b2-49a3-8675-91a2071de549